[Event "*** Titled Tuesday Blitz"]
[Site "Chess.com"]
[Date "2020.04.28"]
[Round "3"]
[White "lolo9292"]
[Black "GMKrikor"]
[Result "0-1"]
[WhiteElo "2466"]
[BlackElo "2718"]
[TimeControl "180+1"]
[EndTime "10:29:45 PDT"]
[Termination "GMKrikor won by resignation"]

1. d4 {[%clk 0:03:00.9]} 1... Nf6 {[%clk 0:02:59.7]} 2. c4 {[%clk 0:03:01.4]}
2... g6 {[%clk 0:02:59.5]} 3. f3 {[%clk 0:03:01.2]} 3... d5 {[%clk 0:02:59.3]}
4. cxd5 {[%clk 0:03:00.9]} 4... Nxd5 {[%clk 0:03:00.2]} 5. e4 {[%clk 0:03:01.4]}
5... Nb6 {[%clk 0:03:00.8]} 6. Nc3 {[%clk 0:02:57.6]} 6... Bg7 {[%clk
0:03:01.4]} 7. Be3 {[%clk 0:02:58.5]} 7... O-O {[%clk 0:03:01.4]} 8. Qd2 {[%clk
0:02:52.5]} 8... e5 {[%clk 0:03:01.6]} 9. d5 {[%clk 0:02:51.9]} 9... c6 {[%clk
0:03:01.7]} 10. h4 {[%clk 0:02:39.2]} 10... h5 {[%clk 0:03:00.4]} 11. g4 {[%clk
0:02:37.4]} 11... cxd5 {[%clk 0:02:54.3]} 12. Bxb6 {[%clk 0:02:25.6]} 12... axb6
{[%clk 0:02:43.2]} 13. Nxd5 {[%clk 0:02:25.9]} 13... Nc6 {[%clk 0:02:27.7]} 14.
gxh5 {[%clk 0:02:25.4]} 14... Nd4 {[%clk 0:02:26.9]} 15. h6 {[%clk 0:02:14]}
15... Bh8 {[%clk 0:02:20.5]} 16. h5 {[%clk 0:02:11.6]} 16... Kh7 {[%clk
0:02:04.9]} 17. Bd3 {[%clk 0:01:58.5]} 17... Be6 {[%clk 0:02:02.6]} 18. Kf2
{[%clk 0:01:49.5]} 18... Nb3 {[%clk 0:01:45.3]} 19. axb3 {[%clk 0:01:47.1]}
19... Rxa1 {[%clk 0:01:46.2]} 20. Bc4 {[%clk 0:01:12.9]} 20... b5 {[%clk
0:01:27.8]} 21. Bxb5 {[%clk 0:01:05.2]} 21... Bxd5 {[%clk 0:01:14.6]} 22. Qxd5
{[%clk 0:01:02.5]} 22... Qb6+ {[%clk 0:01:14.9]} 23. Kg2 {[%clk 0:01:01.6]}
23... gxh5 {[%clk 0:01:15.1]} 24. Bd7 {[%clk 0:00:40.8]} 24... Qf6 {[%clk
0:00:47.8]} 25. Bf5+ {[%clk 0:00:39.2]} 25... Kxh6 {[%clk 0:00:44.8]} 26. Nh3
{[%clk 0:00:23.7]} 26... Rg8+ {[%clk 0:00:41]} 27. Kh2 {[%clk 0:00:24.1]} 27...
Rxh1+ {[%clk 0:00:39.4]} 28. Kxh1 {[%clk 0:00:25]} 28... Qh4 {[%clk 0:00:32.6]}
29. Qd2+ {[%clk 0:00:25.2]} 29... Kg7 {[%clk 0:00:30.1]} 30. Kh2 {[%clk
0:00:25.6]} 30... Qf6 {[%clk 0:00:25.2]} 31. Qd7 {[%clk 0:00:24.1]} 31... Kh6
{[%clk 0:00:19.8]} 32. Qd2+ {[%clk 0:00:23.6]} 32... Kg7 {[%clk 0:00:20.3]} 33.
b4 {[%clk 0:00:21.1]} 33... Rd8 {[%clk 0:00:20.4]} 34. Qg2+ {[%clk 0:00:21.2]}
34... Kf8 {[%clk 0:00:20.8]} 35. Qf2 {[%clk 0:00:20.4]} 35... Bg7 {[%clk
0:00:19.8]} 36. Qc5+ {[%clk 0:00:20.7]} 36... Qd6 {[%clk 0:00:19.7]} 37. Ng5
{[%clk 0:00:19.2]} 37... Qxc5 {[%clk 0:00:18.5]} 38. bxc5 {[%clk 0:00:20.1]}
38... Ke7 {[%clk 0:00:18.9]} 39. Kh3 {[%clk 0:00:21]} 39... Rd2 {[%clk
0:00:18.2]} 40. b4 {[%clk 0:00:20.5]} 40... Rb2 {[%clk 0:00:18.5]} 41. Kh4
{[%clk 0:00:18.8]} 41... Rxb4 {[%clk 0:00:18.6]} 42. Kxh5 {[%clk 0:00:19.1]}
42... Rb5 {[%clk 0:00:18.6]} 43. Bc8 {[%clk 0:00:18.8]} 43... Bf6 {[%clk
0:00:18.5]} 44. Kg4 {[%clk 0:00:17.9]} 44... Bxg5 {[%clk 0:00:18.3]} 45. Kxg5
{[%clk 0:00:18.8]} 45... Kd8 {[%clk 0:00:18.9]} 46. Bf5 {[%clk 0:00:16.3]} 46...
Rxc5 {[%clk 0:00:19]} 47. Kf6 {[%clk 0:00:17.2]} 47... b5 {[%clk 0:00:18.6]} 48.
Kxf7 {[%clk 0:00:16.9]} 48... b4 {[%clk 0:00:19.2]} 49. Be6 {[%clk 0:00:17.6]}
49... Rc3 {[%clk 0:00:16.8]} 50. Kf6 {[%clk 0:00:17.4]} 50... Rxf3+ {[%clk
0:00:16.5]} 51. Kxe5 {[%clk 0:00:17.7]} 51... b3 {[%clk 0:00:17.4]} 52. Kd4
{[%clk 0:00:17.6]} 52... b2 {[%clk 0:00:18]} 53. Ba2 {[%clk 0:00:18.1]} 53...
Rf1 {[%clk 0:00:18.4]} 0-1

[Event "*** Titled Tuesday Blitz"]
[Site "Chess.com"]
[Date "2020.04.28"]
[Round "3"]
[White "Korchmar_Vasiliy"]
[Black "otrov-11"]
[Result "1-0"]
[WhiteElo "2618"]
[BlackElo "2401"]
[TimeControl "180+1"]
[EndTime "10:29:46 PDT"]
[Termination "Korchmar_Vasiliy won by resignation"]

1. d4 {[%clk 0:03:00.9]} 1... Nf6 {[%clk 0:02:59.5]} 2. c4 {[%clk 0:03:01.3]}
2... e6 {[%clk 0:02:58.2]} 3. g3 {[%clk 0:03:00.6]} 3... d5 {[%clk 0:02:54.9]}
4. Bg2 {[%clk 0:03:00.9]} 4... b6 {[%clk 0:02:54.9]} 5. Nf3 {[%clk 0:03:01.3]}
5... Bb7 {[%clk 0:02:55]} 6. O-O {[%clk 0:03:01.4]} 6... dxc4 {[%clk 0:02:40.3]}
7. Qa4+ {[%clk 0:02:55.8]} 7... Nbd7 {[%clk 0:02:40.1]} 8. Qxc4 {[%clk
0:02:45.1]} 8... Be7 {[%clk 0:02:39.2]} 9. Nc3 {[%clk 0:02:44.5]} 9... O-O
{[%clk 0:02:36.9]} 10. Rd1 {[%clk 0:02:34.2]} 10... Ne4 {[%clk 0:02:35.3]} 11.
Bf4 {[%clk 0:02:30.8]} 11... Bd6 {[%clk 0:02:23.3]} 12. Ne5 {[%clk 0:02:16.1]}
12... Bxe5 {[%clk 0:00:47.2]} 13. Nxe4 {[%clk 0:01:38.1]} 13... Bxf4 {[%clk
0:00:42.8]} 14. gxf4 {[%clk 0:01:39]} 14... Bd5 {[%clk 0:00:40]} 15. Qc3 {[%clk
0:01:34.5]} 15... Rc8 {[%clk 0:00:35.8]} 16. e3 {[%clk 0:01:20.3]} 16... Qe7
{[%clk 0:00:34.2]} 17. Rac1 {[%clk 0:01:12]} 17... c5 {[%clk 0:00:26.3]} 18. Qa3
{[%clk 0:01:07.9]} 18... Bxe4 {[%clk 0:00:22.7]} 19. Bxe4 {[%clk 0:01:08.8]}
19... a5 {[%clk 0:00:23.2]} 20. Bg2 {[%clk 0:00:41.3]} 20... g6 {[%clk
0:00:22.8]} 21. Rc2 {[%clk 0:00:38.5]} 21... Rcd8 {[%clk 0:00:19.6]} 22. Rcd2
{[%clk 0:00:37]} 22... Rde8 {[%clk 0:00:16]} 23. Bc6 {[%clk 0:00:35.8]} 23...
cxd4 {[%clk 0:00:11.5]} 24. Rxd4 {[%clk 0:00:36.7]} 24... Qxa3 {[%clk
0:00:05.8]} 25. bxa3 {[%clk 0:00:37.6]} 25... Nc5 {[%clk 0:00:06.2]} 26. Bxe8
{[%clk 0:00:36.8]} 26... Rxe8 {[%clk 0:00:07.1]} 27. Rd8 {[%clk 0:00:37.4]}
27... Kf8 {[%clk 0:00:07.3]} 28. Kg2 {[%clk 0:00:35.1]} 28... Ke7 {[%clk
0:00:06.4]} 29. Rxe8+ {[%clk 0:00:34.3]} 29... Kxe8 {[%clk 0:00:07.3]} 30. Rd6
{[%clk 0:00:34.9]} 30... Nd7 {[%clk 0:00:07.2]} 31. Rc6 {[%clk 0:00:30.9]} 31...
Kd8 {[%clk 0:00:07.1]} 32. Kf3 {[%clk 0:00:29.5]} 32... Ke7 {[%clk 0:00:07.2]}
33. a4 {[%clk 0:00:25.2]} 33... Kd8 {[%clk 0:00:07.2]} 34. Kg4 {[%clk
0:00:23.7]} 34... Ke7 {[%clk 0:00:07.3]} 35. Kg5 {[%clk 0:00:23.3]} 35... h5
{[%clk 0:00:05.2]} 36. e4 {[%clk 0:00:20.8]} 36... Ke8 {[%clk 0:00:04.1]} 37. f5
{[%clk 0:00:19.1]} 37... exf5 {[%clk 0:00:03.3]} 38. exf5 {[%clk 0:00:20]} 38...
gxf5 {[%clk 0:00:01.5]} 39. Kxh5 {[%clk 0:00:19.8]} 39... Ke7 {[%clk 0:00:02.4]}
40. Kg5 {[%clk 0:00:19.6]} 40... Ne5 {[%clk 0:00:02.9]} 41. Rxb6 {[%clk
0:00:19.2]} 41... Nf3+ {[%clk 0:00:03.8]} 42. Kxf5 {[%clk 0:00:19.4]} 42... Nxh2
{[%clk 0:00:04.7]} 43. Rb7+ {[%clk 0:00:19.9]} 43... Kf8 {[%clk 0:00:05.1]} 1-0

[Event "*** Titled Tuesday Blitz"]
[Site "Chess.com"]
[Date "2020.04.28"]
[Round "3"]
[White "Zufi1811"]
[Black "Gabrielian_Artur"]
[Result "0-1"]
[WhiteElo "2473"]
[BlackElo "2724"]
[TimeControl "180+1"]
[EndTime "10:29:47 PDT"]
[Termination "Gabrielian_Artur won by resignation"]

1. e4 {[%clk 0:03:00.9]} 1... c5 {[%clk 0:02:59.1]} 2. Nf3 {[%clk 0:03:00.8]}
2... d6 {[%clk 0:02:59.1]} 3. d4 {[%clk 0:03:01.4]} 3... cxd4 {[%clk 0:02:59.4]}
4. Nxd4 {[%clk 0:03:02.3]} 4... Nf6 {[%clk 0:02:59.6]} 5. Nc3 {[%clk 0:03:02.9]}
5... Nc6 {[%clk 0:02:59.9]} 6. g3 {[%clk 0:03:02.7]} 6... e6 {[%clk 0:02:57.8]}
7. Bg2 {[%clk 0:03:01.7]} 7... Be7 {[%clk 0:02:53.8]} 8. O-O {[%clk 0:03:01.7]}
8... O-O {[%clk 0:02:53.2]} 9. h3 {[%clk 0:02:41.1]} 9... a6 {[%clk 0:02:47]}
10. g4 {[%clk 0:02:35.8]} 10... Qc7 {[%clk 0:02:22.5]} 11. g5 {[%clk 0:02:24.9]}
11... Nd7 {[%clk 0:02:21.8]} 12. h4 {[%clk 0:02:25.2]} 12... b5 {[%clk
0:02:14.1]} 13. Nxc6 {[%clk 0:02:18.9]} 13... Qxc6 {[%clk 0:02:14]} 14. e5
{[%clk 0:01:54.3]} 14... d5 {[%clk 0:02:11.5]} 15. Nxd5 {[%clk 0:01:53.9]} 15...
exd5 {[%clk 0:02:11.2]} 16. Bxd5 {[%clk 0:01:54.8]} 16... Qc7 {[%clk 0:02:04.6]}
17. Bxa8 {[%clk 0:01:54.1]} 17... Nxe5 {[%clk 0:02:04]} 18. Bg2 {[%clk
0:01:49.1]} 18... Ng4 {[%clk 0:01:39.3]} 19. Re1 {[%clk 0:00:49.1]} 19... Bc5
{[%clk 0:01:01.3]} 20. Be3 {[%clk 0:00:43.5]} 20... Bxe3 {[%clk 0:00:56.8]} 21.
fxe3 {[%clk 0:00:44.4]} 21... Qh2+ {[%clk 0:00:52.3]} 22. Kf1 {[%clk 0:00:43.5]}
22... Qxh4 {[%clk 0:00:48.9]} 23. Re2 {[%clk 0:00:29.7]} 23... Be6 {[%clk
0:00:39]} 24. b3 {[%clk 0:00:28.2]} 24... Qxg5 {[%clk 0:00:35.5]} 25. Qd4 {[%clk
0:00:24.1]} 25... Rd8 {[%clk 0:00:23.2]} 26. Qf4 {[%clk 0:00:22.8]} 26... Qh4
{[%clk 0:00:20.6]} 27. Kg1 {[%clk 0:00:20.3]} 27... h5 {[%clk 0:00:20.1]} 28.
Be4 {[%clk 0:00:14.4]} 28... g6 {[%clk 0:00:16.9]} 29. Rf1 {[%clk 0:00:12.6]}
29... Qe7 {[%clk 0:00:15.6]} 30. Bf3 {[%clk 0:00:09.8]} 30... Kg7 {[%clk
0:00:12.8]} 31. e4 {[%clk 0:00:06.6]} 31... Qc5+ {[%clk 0:00:12]} 32. Kg2 {[%clk
0:00:05.3]} 32... Ne5 {[%clk 0:00:11.7]} 33. Ref2 {[%clk 0:00:03.4]} 33... Rf8
{[%clk 0:00:10.1]} 34. Be2 {[%clk 0:00:03]} 34... f6 {[%clk 0:00:10.4]} 35. Bd3
{[%clk 0:00:02.7]} 35... Qd4 {[%clk 0:00:10.1]} 36. Kh1 {[%clk 0:00:02.3]} 36...
g5 {[%clk 0:00:09.7]} 37. Rg1 {[%clk 0:00:02.3]} 37... Qd6 {[%clk 0:00:07.4]}
38. Qh2 {[%clk 0:00:01.5]} 38... Qe7 {[%clk 0:00:06.9]} 39. Qg3 {[%clk
0:00:02.2]} 39... Ng6 {[%clk 0:00:06.7]} 40. Rf3 {[%clk 0:00:02.1]} 40... h4
{[%clk 0:00:06.8]} 41. Rf2 {[%clk 0:00:02.6]} 41... hxg3 {[%clk 0:00:06.7]} 0-1

[Event "*** Titled Tuesday Blitz"]
[Site "Chess.com"]
[Date "2020.04.28"]
[Round "3"]
[White "Shuvalov"]
[Black "Kaua18"]
[Result "1-0"]
[WhiteElo "2469"]
[BlackElo "2248"]
[TimeControl "180+1"]
[EndTime "10:29:48 PDT"]
[Termination "Shuvalov won by resignation"]

1. Nf3 {[%clk 0:03:00.9]} 1... c5 {[%clk 0:03:00]} 2. c4 {[%clk 0:02:59.3]} 2...
Nc6 {[%clk 0:03:00.3]} 3. d4 {[%clk 0:02:59.1]} 3... cxd4 {[%clk 0:02:59.9]} 4.
Nxd4 {[%clk 0:02:59.3]} 4... g6 {[%clk 0:02:59.2]} 5. e4 {[%clk 0:02:58.9]} 5...
Bg7 {[%clk 0:02:59.5]} 6. Be3 {[%clk 0:02:58.8]} 6... d6 {[%clk 0:02:59]} 7. Nc3
{[%clk 0:02:58.6]} 7... Nf6 {[%clk 0:02:59.5]} 8. Be2 {[%clk 0:02:58.4]} 8...
O-O {[%clk 0:02:59.3]} 9. O-O {[%clk 0:02:56.4]} 9... Bd7 {[%clk 0:02:59.6]} 10.
f3 {[%clk 0:02:56.4]} 10... Nxd4 {[%clk 0:02:54.8]} 11. Bxd4 {[%clk 0:02:52.6]}
11... Bc6 {[%clk 0:02:55.1]} 12. Qd2 {[%clk 0:02:51.7]} 12... Nd7 {[%clk
0:02:53.8]} 13. Be3 {[%clk 0:02:51.4]} 13... a6 {[%clk 0:02:48.1]} 14. Rab1
{[%clk 0:02:50.5]} 14... a5 {[%clk 0:02:45.9]} 15. b3 {[%clk 0:02:47.5]} 15...
Nc5 {[%clk 0:02:31.3]} 16. Rfc1 {[%clk 0:02:44.3]} 16... Na6 {[%clk 0:02:30.4]}
17. a3 {[%clk 0:02:40.2]} 17... Rc8 {[%clk 0:02:19]} 18. b4 {[%clk 0:02:32.2]}
18... axb4 {[%clk 0:02:18.9]} 19. axb4 {[%clk 0:02:33.1]} 19... Bd7 {[%clk
0:02:16.8]} 20. Nd5 {[%clk 0:02:25]} 20... Be6 {[%clk 0:02:10.6]} 21. Nb6 {[%clk
0:02:18.4]} 21... Rc6 {[%clk 0:02:03.5]} 22. Nd5 {[%clk 0:02:02.4]} 22... Rc8
{[%clk 0:01:52.7]} 23. Kh1 {[%clk 0:02:00.4]} 23... Nc7 {[%clk 0:01:47.5]} 24.
Nb6 {[%clk 0:01:58.6]} 24... Rb8 {[%clk 0:01:46.4]} 25. Rd1 {[%clk 0:01:43.1]}
25... Na8 {[%clk 0:01:46.4]} 26. Nd5 {[%clk 0:01:34.5]} 26... f5 {[%clk
0:01:45.4]} 27. Bg5 {[%clk 0:01:31.2]} 27... Rf7 {[%clk 0:01:42]} 28. c5 {[%clk
0:01:26.7]} 28... fxe4 {[%clk 0:01:13.4]} 29. fxe4 {[%clk 0:01:23.7]} 29... Be5
{[%clk 0:01:09.7]} 30. Bc4 {[%clk 0:01:16.8]} 30... Qd7 {[%clk 0:01:04.8]} 31.
Rf1 {[%clk 0:01:02.1]} 31... Bxd5 {[%clk 0:01:04.2]} 32. Bxd5 {[%clk 0:00:59.4]}
32... e6 {[%clk 0:01:04]} 33. Bb3 {[%clk 0:00:53.8]} 33... dxc5 {[%clk
0:01:02.5]} 34. Qxd7 {[%clk 0:00:52.1]} 34... Rxd7 {[%clk 0:01:03.4]} 35. Bxe6+
{[%clk 0:00:52]} 35... Kg7 {[%clk 0:01:03.6]} 36. Bxd7 {[%clk 0:00:51.6]} 36...
c4 {[%clk 0:01:04]} 37. Be6 {[%clk 0:00:50.3]} 37... b5 {[%clk 0:01:03]} 38.
Rf7+ {[%clk 0:00:50]} 38... Kh8 {[%clk 0:01:02.4]} 39. Rbf1 {[%clk 0:00:48.5]}
39... Nc7 {[%clk 0:01:02.2]} 40. Bd7 {[%clk 0:00:40.9]} 40... c3 {[%clk
0:00:55.8]} 41. Bh6 {[%clk 0:00:40.8]} 41... Rg8 {[%clk 0:00:36.4]} 42. Rf8
{[%clk 0:00:40.3]} 42... Bd6 {[%clk 0:00:26.7]} 43. Rxg8+ {[%clk 0:00:38.5]}
43... Kxg8 {[%clk 0:00:27.6]} 44. e5 {[%clk 0:00:29.9]} 44... Bxb4 {[%clk
0:00:26.7]} 45. e6 {[%clk 0:00:30.4]} 45... c2 {[%clk 0:00:25.1]} 46. Rc1 {[%clk
0:00:24.3]} 46... Bd6 {[%clk 0:00:18.9]} 47. Rxc2 {[%clk 0:00:24.2]} 47... b4
{[%clk 0:00:15.1]} 48. Ra2 {[%clk 0:00:23.7]} 48... b3 {[%clk 0:00:13.2]} 49.
Rb2 {[%clk 0:00:23.4]} 49... g5 {[%clk 0:00:12.1]} 50. Rxb3 {[%clk 0:00:23.4]}
50... Nd5 {[%clk 0:00:11.6]} 51. Rd3 {[%clk 0:00:22.2]} 51... g4 {[%clk
0:00:08.6]} 52. Rxd5 {[%clk 0:00:21.8]} 52... Be7 {[%clk 0:00:09.3]} 53. Ra5
{[%clk 0:00:20.8]} 1-0

[Event "*** Titled Tuesday Blitz"]
[Site "Chess.com"]
[Date "2020.04.28"]
[Round "3"]
[White "WIDBIFS"]
[Black "jguerramzllo"]
[Result "1-0"]
[WhiteElo "2841"]
[BlackElo "2618"]
[TimeControl "180+1"]
[EndTime "10:29:49 PDT"]
[Termination "WIDBIFS won by resignation"]

1. d4 {[%clk 0:03:00.9]} 1... d5 {[%clk 0:02:58.3]} 2. Nf3 {[%clk 0:03:01.3]}
2... Nf6 {[%clk 0:02:56]} 3. Bf4 {[%clk 0:03:01.4]} 3... e6 {[%clk 0:02:55.1]}
4. e3 {[%clk 0:03:01.4]} 4... Bd6 {[%clk 0:02:55.4]} 5. Bg3 {[%clk 0:03:01.7]}
5... O-O {[%clk 0:02:54.5]} 6. Nbd2 {[%clk 0:03:02]} 6... c5 {[%clk 0:02:53.9]}
7. c3 {[%clk 0:03:02.7]} 7... Qc7 {[%clk 0:02:53.1]} 8. Bd3 {[%clk 0:03:02.8]}
8... Nc6 {[%clk 0:02:52.1]} 9. Qc2 {[%clk 0:03:01.6]} 9... e5 {[%clk 0:02:50.5]}
10. dxe5 {[%clk 0:03:02.5]} 10... Nxe5 {[%clk 0:02:49.9]} 11. Nxe5 {[%clk
0:03:00.2]} 11... Bxe5 {[%clk 0:02:50.8]} 12. Bh4 {[%clk 0:03:01.1]} 12... h6
{[%clk 0:02:22.9]} 13. Nf3 {[%clk 0:03:00.4]} 13... b6 {[%clk 0:02:11.9]} 14.
O-O {[%clk 0:02:59.1]} 14... Bb7 {[%clk 0:02:11.3]} 15. Nxe5 {[%clk 0:02:58.8]}
15... Qxe5 {[%clk 0:02:10.3]} 16. Bg3 {[%clk 0:02:59.7]} 16... Qe6 {[%clk
0:02:09.3]} 17. Rad1 {[%clk 0:02:53.4]} 17... Rfd8 {[%clk 0:02:06.4]} 18. Bf5
{[%clk 0:02:53.1]} 18... Qe7 {[%clk 0:02:05.4]} 19. Rfe1 {[%clk 0:02:50.4]}
19... Ne4 {[%clk 0:02:00.1]} 20. c4 {[%clk 0:02:27.9]} 20... Nxg3 {[%clk
0:01:48.9]} 21. hxg3 {[%clk 0:02:28.8]} 21... dxc4 {[%clk 0:01:42.8]} 22. Qxc4
{[%clk 0:02:27.7]} 22... Rxd1 {[%clk 0:01:43.2]} 23. Rxd1 {[%clk 0:02:27.6]}
23... Rd8 {[%clk 0:01:43.8]} 24. Qc2 {[%clk 0:02:11.1]} 24... Rd6 {[%clk
0:01:31.2]} 25. Rxd6 {[%clk 0:01:45.9]} 25... Qxd6 {[%clk 0:01:30.5]} 26. Qd3
{[%clk 0:01:46.5]} 26... Qxd3 {[%clk 0:01:26.2]} 27. Bxd3 {[%clk 0:01:47.4]}
27... Bd5 {[%clk 0:01:17.9]} 28. a3 {[%clk 0:01:47.4]} 28... c4 {[%clk
0:01:17.6]} 29. Bc2 {[%clk 0:01:40.1]} 29... b5 {[%clk 0:01:17.6]} 30. e4 {[%clk
0:01:40.4]} 30... Bc6 {[%clk 0:01:14.7]} 31. f3 {[%clk 0:01:39.4]} 31... a5
{[%clk 0:00:55.2]} 32. Kf2 {[%clk 0:01:39.1]} 32... b4 {[%clk 0:00:55.1]} 33.
axb4 {[%clk 0:01:40]} 33... axb4 {[%clk 0:00:54.5]} 34. Ke3 {[%clk 0:01:40.5]}
34... Bb5 {[%clk 0:00:48]} 35. Kd4 {[%clk 0:01:26.1]} 35... Ba6 {[%clk 0:00:48]}
36. Bd1 {[%clk 0:01:19.3]} 36... c3 {[%clk 0:00:42.9]} 37. b3 {[%clk 0:01:08.4]}
37... Bf1 {[%clk 0:00:38.6]} 38. Bc2 {[%clk 0:01:03.4]} 38... Bxg2 {[%clk
0:00:37.9]} 39. f4 {[%clk 0:01:04]} 39... f6 {[%clk 0:00:26.1]} 40. Kc5 {[%clk
0:01:03.4]} 40... g5 {[%clk 0:00:25.8]} 41. e5 {[%clk 0:00:28.1]} 41... h5
{[%clk 0:00:19.4]} 42. fxg5 {[%clk 0:00:22.1]} 42... fxg5 {[%clk 0:00:18.7]} 43.
Kd6 {[%clk 0:00:17.4]} 43... h4 {[%clk 0:00:16.6]} 44. gxh4 {[%clk 0:00:16.1]}
44... gxh4 {[%clk 0:00:17.5]} 45. e6 {[%clk 0:00:17]} 45... h3 {[%clk
0:00:15.6]} 46. e7 {[%clk 0:00:16.8]} 46... Bc6 {[%clk 0:00:11.8]} 47. Kxc6
{[%clk 0:00:15.6]} 47... Kf7 {[%clk 0:00:11.9]} 48. Kd7 {[%clk 0:00:15.7]} 48...
h2 {[%clk 0:00:11.9]} 49. e8=Q+ {[%clk 0:00:16.6]} 49... Kf6 {[%clk 0:00:11.6]}
50. Qg6+ {[%clk 0:00:16.9]} 50... Ke5 {[%clk 0:00:11.5]} 51. Qh5+ {[%clk
0:00:17.1]} 1-0

[Event "*** Titled Tuesday Blitz"]
[Site "Chess.com"]
[Date "2020.04.28"]
[Round "3"]
[White "monstertube"]
[Black "dbrankovic68"]
[Result "0-1"]
[WhiteElo "2144"]
[BlackElo "2348"]
[TimeControl "180+1"]
[EndTime "10:29:49 PDT"]
[Termination "dbrankovic68 won by resignation"]

1. d4 {[%clk 0:03:00.9]} 1... Nf6 {[%clk 0:02:59.9]} 2. Nf3 {[%clk 0:02:57.6]}
2... g6 {[%clk 0:02:59.3]} 3. c4 {[%clk 0:02:54.8]} 3... Bg7 {[%clk 0:02:59.1]}
4. Nc3 {[%clk 0:02:54.4]} 4... d6 {[%clk 0:02:59.7]} 5. e4 {[%clk 0:02:52.2]}
5... O-O {[%clk 0:03:00.1]} 6. Bg5 {[%clk 0:02:51.9]} 6... c6 {[%clk 0:02:57.7]}
7. Be2 {[%clk 0:02:49.7]} 7... Na6 {[%clk 0:02:57.1]} 8. h3 {[%clk 0:02:49.2]}
8... Qa5 {[%clk 0:02:53.1]} 9. O-O {[%clk 0:02:41.6]} 9... e5 {[%clk 0:02:52.5]}
10. d5 {[%clk 0:02:28.9]} 10... cxd5 {[%clk 0:02:49.7]} 11. cxd5 {[%clk
0:02:29.4]} 11... Bd7 {[%clk 0:02:32.4]} 12. a3 {[%clk 0:02:20.3]} 12... Rfc8
{[%clk 0:02:29.3]} 13. Rc1 {[%clk 0:02:19.7]} 13... b5 {[%clk 0:02:14.1]} 14.
Nd2 {[%clk 0:02:08.2]} 14... Qb6 {[%clk 0:02:04.7]} 15. Nb3 {[%clk 0:01:51.9]}
15... Rxc3 {[%clk 0:01:32.4]} 16. bxc3 {[%clk 0:01:35.8]} 16... Nxe4 {[%clk
0:01:32]} 17. Be3 {[%clk 0:01:34.7]} 17... Qc7 {[%clk 0:01:28.2]} 18. Qc2 {[%clk
0:01:19.1]} 18... f5 {[%clk 0:01:05.7]} 19. f3 {[%clk 0:01:10.9]} 19... Ng3
{[%clk 0:01:03.8]} 20. Rfd1 {[%clk 0:01:03.6]} 20... Nxe2+ {[%clk 0:01:03.7]}
21. Qxe2 {[%clk 0:01:01.9]} 21... Rc8 {[%clk 0:01:00]} 22. Nd2 {[%clk
0:00:55.9]} 22... Qa5 {[%clk 0:00:51.1]} 23. Nb1 {[%clk 0:00:52.4]} 23... Nc5
{[%clk 0:00:50.2]} 24. Qf2 {[%clk 0:00:46.7]} 24... Qa4 {[%clk 0:00:44.7]} 25.
Qc2 {[%clk 0:00:34.9]} 25... Qa5 {[%clk 0:00:33]} 26. Bd2 {[%clk 0:00:25.3]}
26... Qb6 {[%clk 0:00:27.2]} 27. Be3 {[%clk 0:00:25.3]} 27... Qa6 {[%clk
0:00:25.4]} 28. Qb2 {[%clk 0:00:24.4]} 28... f4 {[%clk 0:00:23.6]} 29. Bf2
{[%clk 0:00:23.8]} 29... Na4 {[%clk 0:00:21.7]} 30. Qb4 {[%clk 0:00:21.6]} 30...
Rc4 {[%clk 0:00:21.5]} 31. Qb3 {[%clk 0:00:21.2]} 31... Nc5 {[%clk 0:00:21.5]}
32. Qb2 {[%clk 0:00:21]} 32... Bf5 {[%clk 0:00:20.4]} 33. Nd2 {[%clk 0:00:20.6]}
33... Nd3 {[%clk 0:00:17.5]} 34. Qa2 {[%clk 0:00:19.3]} 34... Ra4 {[%clk
0:00:16.7]} 35. Ra1 {[%clk 0:00:17.6]} 35... Nxf2 {[%clk 0:00:16.5]} 36. Kxf2
{[%clk 0:00:17.8]} 36... Qb6+ {[%clk 0:00:15.3]} 37. Kf1 {[%clk 0:00:17.9]}
37... Bf6 {[%clk 0:00:15.1]} 38. Re1 {[%clk 0:00:17.1]} 38... Bh4 {[%clk
0:00:14.3]} 39. Re2 {[%clk 0:00:17.5]} 39... Bd3 {[%clk 0:00:14.4]} 40. Ne4
{[%clk 0:00:17.8]} 40... Qe3 {[%clk 0:00:12.9]} 41. Re1 {[%clk 0:00:14.8]} 41...
Rxe4 {[%clk 0:00:10]} 0-1